Workbook

Sheet Calcolo RAI
C1: =C33 -> 81.95 | D1: =D33 -> 10.9 | E1: 0.7888230141 | F1: 0.7888230141 | G1: =G33 -> Conforme n° 3 NON CONFORME n° 4 | H1: =H33 -> RAI NON IDONEO | K1: =H33 -> RAI NON IDONEO
A2: P | B2: Nome del Locale o ambiente, ecc. | C2: Superficie Locale NETTA (m²) | D2: Superficie netta Aeroilluminante -Finestre, balconi ecc. (m²) | E2: RAI Calcolato | F2: RAI approsimato | G2: Requisito Minimo RAI (≥ 1/8) | H2: Esito | I2: Congruità
A3: 1 | B3: Cucina | C3: 6 | D3: 0.7 | E3: =IF(OR(B3="",C3="",D3=""),"",D3/C3) -> 0.1166666667 | F3: ='Calcolo RAI'!$E3 -> 0.1166666667 | G3: =IF(OR(B3="",C3="",D3=""),"",1/8) -> 0.125 | H3: =IF(OR(B3="",C3="",D3=""),"",IF(E3>=0.1245,"CONFORME","NON Conforme")) -> NON Conforme | I3: =IF(OR(B3="",C3="",D3=""),"",'Calcolo RAI'!$E3-'Calcolo RAI'!$G3) -> -0.008333333333 | K3: A I U T O P E R A L T R I C O M P U T I
A4: 2 | B4: Soggiorno | C4: 12 | D4: 2 | E4: 0.1666666667 | F4: ='Calcolo RAI'!$E4 -> 0.1666666667 | G4: 0.125 | H4: CONFORME | I4: =IF(OR(B4="",C4="",D4=""),"",'Calcolo RAI'!$E4-'Calcolo RAI'!$G4) -> 0.04166666667 | L4: Altezza | M4: Larghezza | N4: Lunghezza | O4: Superficie Calcolata | P4: Volume Calcolato | Q4: Perimetro | S4: Area Trapezio
A5: 3 | B5: Salone | C5: 14.5 | D5: 1 | E5: 0.06896551724 | F5: ='Calcolo RAI'!$E5 -> 0.06896551724 | G5: 0.125 | H5: NON Conforme | I5: =IF(OR(B5="",C5="",D5=""),"",'Calcolo RAI'!$E5-'Calcolo RAI'!$G5) -> -0.05603448276 | L5: 2.75 | M5: 4 | N5: 6 | O5: =IF(OR(M5="",N5="",M5<=0,N5<=0),"",(M5*N5)) -> 24 | P5: =IF(OR(L5="",M5="",N5="",M5<=0,N5<=0,L5<=0),"",L5*M5*N5) -> 66 | Q5: =IF(OR(M5="",N5="",M5<=0,N5<=0),"",2*(M5+N5)) -> 20 | S5: =IF(OR(L5="",M5="",N5="",M5<=0,N5<=0,L5<=0),"",(M5*N5)*L5/2) -> 33
A6: 4 | B6: Camera da letto | C6: 10 | D6: 1.5 | E6: 0.15 | F6: ='Calcolo RAI'!$E6 -> 0.15 | G6: 0.125 | H6: CONFORME | I6: =IF(OR(B6="",C6="",D6=""),"",'Calcolo RAI'!$E6-'Calcolo RAI'!$G6) -> 0.025 | L6: =IF(OR(L5="",M5="",N5="",M5<=0,N5<=0,L5<=0),"Errore: Altezza, Larghezza e Lunghezza sono dati e/o valori numerici indispensabili per poter determinare tutti i risultati da visualizzare in alto e devono essere, tutti, maggiori di zero. Controlla e correggi!","") -> 
A7: 5 | B7: Camera bambini | C7: 2 | D7: 0 | E7: 0 | F7: ='Calcolo RAI'!$E7 -> 0 | G7: 0.125 | H7: NON Conforme | I7: =IF(OR(B7="",C7="",D7=""),"",'Calcolo RAI'!$E7-'Calcolo RAI'!$G7) -> -0.125 | L7: Teorema di Pitagora Triangolo rettangolo | M7: Cateto | N7: 1.5 | P7: CERCHIO
A8: 6 | B8: Sala da pranzo | C8: 24 | D8: 4.2 | E8: 0.175 | F8: ='Calcolo RAI'!$E8 -> 0.175 | G8: 0.125 | H8: CONFORME | I8: =IF(OR(B8="",C8="",D8=""),"",'Calcolo RAI'!$E8-'Calcolo RAI'!$G8) -> 0.05 | M8: L'altro Cateto | N8: 2.36 | P8: Raggio Cerchio | Q8: 2.15 | R8: Diametro cerchio | S8: 3.68
A9: 7 | B9: Bagno | C9: 13.45 | D9: 1.5 | E9: 0.1115241636 | F9: ='Calcolo RAI'!$E9 -> 0.1115241636 | G9: 0.125 | H9: NON Conforme | I9: =IF(OR(B9="",C9="",D9=""),"",'Calcolo RAI'!$E9-'Calcolo RAI'!$G9) -> -0.01347583643 | M9: Calcolo Ipotenusa | N9: =SQRT(N7^2 + N8^2) -> 2.79635477 | P9: Area Calcolata del cerchio | Q9: =3.14159 * Q8^2 -> 14.52199977 | R9: Area Calcolata del cerchio | S9: =3.14159 * (S8 / 2)^2 -> 10.6361671
A10: 8 | F10: ='Calcolo RAI'!$E10 ->  | I10: =IF(OR(B10="",C10="",D10=""),"",'Calcolo RAI'!$E10-'Calcolo RAI'!$G10) ->  | M10: AREA | N10: =0.5*N7*N8 -> 1.77 | P10: Circonferenza del cerchio | Q10: 10.64 | R10: Area del cerchio | S10: 9.01
A11: 9 | F11: ='Calcolo RAI'!$E11 ->  | I11: =IF(OR(B11="",C11="",D11=""),"",'Calcolo RAI'!$E11-'Calcolo RAI'!$G11) ->  | M11: Cateto Noto | N11: 7 | P11: Area Calcolata del cerchio | Q11: =3.14159 * (Q10/(2*3.14159))^2 -> 9.008941332 | R11: Raggio Calcolato | S11: =SQRT(S10 /3.14159) -> 1.693509521
A12: 10 | F12: ='Calcolo RAI'!$E12 ->  | I12: =IF(OR(B12="",C12="",D12=""),"",'Calcolo RAI'!$E12-'Calcolo RAI'!$G12) ->  | M12: Ipotenusa | N12: 12 | P12: Raggio del cerchio | Q12: 4 | R12: Diametro Calcolato | S12: =2 * S11 -> 3.387019042
A13: 11 | F13: ='Calcolo RAI'!$E13 ->  | I13: =IF(OR(B13="",C13="",D13=""),"",'Calcolo RAI'!$E13-'Calcolo RAI'!$G13) ->  | M13: Calcolo Cateto | N13: =IF(N12^2 > N11^2, SQRT(N12^2 - N11^2), "Errore: ipotenusa troppo piccola") -> 9.746794345 | P13: Circonferenza calcolata del cerchio | Q13: =2*3.14159*Q12 -> 25.13272 | R13: Circonferenza calcolata | S13: =2 * 3.14159 * S11 -> 10.64062515
A14: 12 | F14: ='Calcolo RAI'!$E14 ->  | I14: =IF(OR(B14="",C14="",D14=""),"",'Calcolo RAI'!$E14-'Calcolo RAI'!$G14) ->  | R14: Lunghezza Corda | S14: 4
A15: 13 | F15: ='Calcolo RAI'!$E15 ->  | I15: =IF(OR(B15="",C15="",D15=""),"",'Calcolo RAI'!$E15-'Calcolo RAI'!$G15) ->  | L15: Triangolo - Teorema di Carnot e dei coseni | R15: Distanza dal centro della corda | S15: 4.56
A16: 14 | F16: ='Calcolo RAI'!$E16 ->  | I16: =IF(OR(B16="",C16="",D16=""),"",'Calcolo RAI'!$E16-'Calcolo RAI'!$G16) ->  | L16: Gradi angolo del triangolo tra lati A e B | M16: 49 | R16: Raggio | S16: =SQRT((S14/2)^2 + S15^2) -> 4.979317222
A17: 15 | F17: ='Calcolo RAI'!$E17 ->  | I17: =IF(OR(B17="",C17="",D17=""),"",'Calcolo RAI'!$E17-'Calcolo RAI'!$G17) ->  | L17: Lato A del triangolo | M17: 6.5 | N17: Calcolo Perimetro | O17: =M17 + M18 + SQRT(M17^2 + M18^2 - 2 * M17 * M18 * COS(RADIANS(M16))) -> 15.75635933 | R17: Diametro | S17: =2*S16 -> 9.958634445
A18: 16 | F18: ='Calcolo RAI'!$E18 ->  | I18: =IF(OR(B18="",C18="",D18=""),"",'Calcolo RAI'!$E18-'Calcolo RAI'!$G18) ->  | L18: Lato B del triangolo | M18: 4.35 | N18: Area del triangolo | O18: =0.5 * M17 * M18 * SIN(RADIANS(M16)) -> 10.66970669 | R18: Circonferenza | S18: =2*3.1416*S16 -> 31.28604597
A19: 17 | F19: ='Calcolo RAI'!$E19 ->  | I19: =IF(OR(B19="",C19="",D19=""),"",'Calcolo RAI'!$E19-'Calcolo RAI'!$G19) ->  | L19: Calcolo terzo lato | M19: =SQRT(M17^2 + M18^2 - 2 * M17 * M18 * COS(RADIANS(M16))) -> 4.906359334 | N19: Altezza del Trinagolo | O19: =M18 * SIN(RADIANS(M16)) -> 3.282986674 | R19: Area | S19: =3.1416*(S16^2) -> 77.89157376
A20: 18 | F20: ='Calcolo RAI'!$E20 ->  | I20: =IF(OR(B20="",C20="",D20=""),"",'Calcolo RAI'!$E20-'Calcolo RAI'!$G20) -> 
A21: 19 | F21: ='Calcolo RAI'!$E21 ->  | I21: =IF(OR(B21="",C21="",D21=""),"",'Calcolo RAI'!$E21-'Calcolo RAI'!$G21) ->  | L21: Poligono iregolare con quattro lati differenti ed altezza | P21: Trapezio per conoscere il lato obliquo e volume del prisma
A22: 20 | F22: ='Calcolo RAI'!$E22 ->  | I22: =IF(OR(B22="",C22="",D22=""),"",'Calcolo RAI'!$E22-'Calcolo RAI'!$G22) ->  | L22: Lato 1 | M22: 10 | N22: Perimetro | O22: =IF(N26="Errore: i lati del poligono devono essere diversi tra loro e l'altezza deve essere maggiore di zero","",M22+M23+M24+M25) -> 48 | P22: Base maggiore | Q22: 12 | R22: Lato obliquo isoscele | S22: =IF(P26="Errore: La base minore non può essere maggiore o uguale alla base maggiore e/o le due altezze devono essere maggiori di zero.","",SQRT(((Q22 - Q23) / 2)^2 + Q24^2)) -> 10.0124922
A23: 21 | F23: ='Calcolo RAI'!$E23 ->  | I23: =IF(OR(B23="",C23="",D23=""),"",'Calcolo RAI'!$E23-'Calcolo RAI'!$G23) ->  | L23: lato 2 | M23: 11 | N23: Semiperimetro | O23: =IF(N26="Errore: i lati del poligono devono essere diversi tra loro e l'altezza deve essere maggiore di zero","",(M22+M23+M24+M25)/2) -> 24 | P23: Base minore | Q23: 11 | R23: Lato obliquo rettangolo | S23: =IF(P26="Errore: La base minore non può essere maggiore o uguale alla base maggiore e/o le due altezze devono essere maggiori di zero.","",Q24) -> 10
A24: 22 | F24: ='Calcolo RAI'!$E24 ->  | I24: =IF(OR(B24="",C24="",D24=""),"",'Calcolo RAI'!$E24-'Calcolo RAI'!$G24) ->  | L24: lato 3 | M24: 9 | N24: Area della base formula di Bretschneider | O24: =IF(N26="Errore: i lati del poligono devono essere diversi tra loro e l'altezza deve essere maggiore di zero","",SQRT((O23-M22)*(O23-M23)*(O23-M24)*(O23-M25))) -> 127.984374 | P24: Altezza | Q24: 10 | R24: Area Trapezio | S24: =IF(P26="Errore: La base minore non può essere maggiore o uguale alla base maggiore e/o le due altezze devono essere maggiori di zero.","",((Q22+Q23)/2)*Q24) -> 115
A25: 23 | F25: ='Calcolo RAI'!$E25 ->  | I25: =IF(OR(B25="",C25="",D25=""),"",'Calcolo RAI'!$E25-'Calcolo RAI'!$G25) ->  | L25: Lato 4 | M25: 18 | N25: Volume | O25: =IF(N26="Errore: i lati del poligono devono essere diversi tra loro e l'altezza deve essere maggiore di zero","",O24*M26) -> 345.5578099 | P25: Altezza del prisma h prisma (la profondità) | Q25: 2.7 | R25: Volume del prisma | S25: =IF(P26="Errore: La base minore non può essere maggiore o uguale alla base maggiore e/o le due altezze devono essere maggiori di zero.","",S24*Q25) -> 310.5
A26: 24 | F26: ='Calcolo RAI'!$E26 ->  | I26: =IF(OR(B26="",C26="",D26=""),"",'Calcolo RAI'!$E26-'Calcolo RAI'!$G26) ->  | L26: Altezza H | M26: 2.7 | N26: =IF(AND(M22<>M23, M22<>M24, M22<>M25, M23<>M24, M23<>M25, M24<>M25, M26>0), "", "Errore: i lati del poligono devono essere diversi tra loro e l'altezza deve essere maggiore di zero") ->  | P26: =IF(AND(Q22>Q23, Q22<>Q23, Q24>0, Q25>0), "","Errore: La base minore non può essere maggiore o uguale alla base maggiore e/o le due altezze devono essere maggiori di zero.") -> 
A27: 25 | F27: ='Calcolo RAI'!$E27 ->  | I27: =IF(OR(B27="",C27="",D27=""),"",'Calcolo RAI'!$E27-'Calcolo RAI'!$G27) -> 
A28: 26 | F28: ='Calcolo RAI'!$E28 ->  | I28: =IF(OR(B28="",C28="",D28=""),"",'Calcolo RAI'!$E28-'Calcolo RAI'!$G28) -> 
A29: 27 | F29: ='Calcolo RAI'!$E29 ->  | I29: =IF(OR(B29="",C29="",D29=""),"",'Calcolo RAI'!$E29-'Calcolo RAI'!$G29) -> 
A30: 28 | F30: ='Calcolo RAI'!$E30 ->  | I30: =IF(OR(B30="",C30="",D30=""),"",'Calcolo RAI'!$E30-'Calcolo RAI'!$G30) -> 
A31: 29 | F31: ='Calcolo RAI'!$E31 ->  | I31: =IF(OR(B31="",C31="",D31=""),"",'Calcolo RAI'!$E31-'Calcolo RAI'!$G31) -> 
A32: 30 | F32: ='Calcolo RAI'!$E32 ->  | I32: =IF(OR(B32="",C32="",D32=""),"",'Calcolo RAI'!$E32-'Calcolo RAI'!$G32) -> 
A33: SOMMANO | C33: =SUBTOTAL(109,'Calcolo RAI'!$C$3:$C$32) -> 81.95 | D33: =SUBTOTAL(109,'Calcolo RAI'!$D$3:$D$32) -> 10.9 | E33: =SUBTOTAL(109,'Calcolo RAI'!$E$3:$E$32) -> 0.7888230141 | F33: =SUBTOTAL(109,'Calcolo RAI'!$F$3:$F$32) -> 0.7888230141 | G33: =IF(COUNTIF(H3:H32, "conforme")>0, "Conforme n° " & COUNTIF(H3:H32, "conforme"), "") & IF(COUNTIF(H3:H32, "non conforme")>0, " NON CONFORME n° " & COUNTIF(H3:H32, "non conforme"), "") -> Conforme n° 3 NON CONFORME n° 4 | H33: =IF(COUNTIF(H3:H32,"non conforme")>0,"RAI NON IDONEO",IF(COUNTIF(H3:H32,"conforme")>0,"RAI IDONEO",IF(COUNTIF(H3:H32,"")>0,"IN ATTESA DEI DATI"))) -> RAI NON IDONEO

Sheet BackupDati (hidden)
A1: $B$3 | B1: Cucina | C1: Cucina
A2: $C$3 | B2: 6 | C2: Soggiorno
A3: $D$3 | B3: 0.7 | C3: Salone
A4: $B$4 | B4: Soggiorno | C4: Camera da letto
A5: $C$4 | B5: 12 | C5: Camera bambini
A6: $D$4 | B6: 2 | C6: Sala da pranzo
A7: $B$5 | B7: Salone | C7: Camera VEPA
A8: $C$5 | B8: 14.5 | C8: Antibagno
A9: $D$5 | B9: 1 | C9: Bagno
A10: $L$5 | B10: 2.75 | C10: Stanza ospiti
A11: $M$5 | B11: 4 | C11: Antibagno ospiti
A12: $N$5 | B12: 6 | C12: Bagno ospiti
A13: $B$6 | B13: Camera da letto | C13: Stanza hobby
A14: $C$6 | B14: 10 | C14: Camera studio
A15: $D$6 | B15: 1.5 | C15: Sala ufficio
A16: $B$7 | B16: Camera bambini | C16: Sala palestra
A17: $C$7 | B17: 2 | C17: Sala biblioteca
A18: $D$7 | B18: 0 | C18: Sala cinema
A19: $N$7 | B19: 1.5 | C19: Locale tecnico
A20: $B$8 | B20: Sala da pranzo | C20: Ingresso
A21: $C$8 | B21: 24 | C21: Corridoio
A22: $D$8 | B22: 4.2 | C22: Disimpegno
A23: $N$8 | B23: 2.36 | C23: Ripostiglio
A24: $Q$8 | B24: 2.15 | C24: Lavanderia
A25: $S$8 | B25: 3.68 | C25: Mansarda
A26: $B$9 | C26: Sottotetto
A27: $C$9 | C27: Taverna
A28: $D$9 | C28: Cantina
A29: $B$10 | C29: Deposito
A30: $C$10 | C30: Garage
A31: $D$10
A32: $Q$10 | B32: 10.64
A33: $S$10 | B33: 9.01
A34: $B$11
A35: $C$11
A36: $D$11
A37: $N$11 | B37: 7
A38: $B$12
A39: $C$12
A40: $D$12
A41: $N$12 | B41: 12
A42: $Q$12 | B42: 4
A43: $B$13
A44: $C$13
A45: $D$13
A46: $B$14
A47: $C$14
A48: $D$14
A49: $S$14 | B49: 4
A50: $B$15
A51: $C$15
A52: $D$15
A53: $S$15 | B53: 4.56
A54: $B$16
A55: $C$16
A56: $D$16
A57: $M$16 | B57: 49
A58: $B$17
A59: $C$17
A60: $D$17
A61: $M$17 | B61: 6.5
A62: $B$18
A63: $C$18
A64: $D$18
A65: $M$18 | B65: 4.35
A66: $B$19
A67: $C$19
A68: $D$19
A69: $B$20
A70: $C$20
A71: $D$20
A72: $M$20
A73: $B$21
A74: $C$21
A75: $D$21
A76: $B$22
A77: $C$22
A78: $D$22
A79: $M$22 | B79: 10
A80: $Q$22 | B80: 12
A81: $B$23
A82: $C$23
A83: $D$23
A84: $M$23 | B84: 11
A85: $Q$23 | B85: 11
A86: $B$24
A87: $C$24
A88: $D$24
A89: $M$24 | B89: 9
A90: $Q$24 | B90: 10
A91: $B$25
A92: $C$25
A93: $D$25
A94: $M$25 | B94: 18
A95: $Q$25 | B95: 2.7
A96: $B$26
A97: $C$26
A98: $D$26
A99: $M$26 | B99: 2.7
A100: $B$27
A101: $C$27
A102: $D$27
A103: $B$28
A104: $C$28
A105: $D$28
A106: $M$28
A107: $B$29
A108: $C$29
A109: $D$29
A110: $M$29
A111: $B$30
A112: $C$30
A113: $D$30
A114: $M$30
A115: $B$31
A116: $C$31
A117: $D$31
A118: $M$31
A119: $B$32
A120: $C$32
A121: $D$32
A122: $D$32
